{"text_format":"1","workbook":"xlsx","n_sheets":2,"sheets":["Rentabilité","Données"],"not_rendered":{"charts":0,"images":1,"macros":1,"external_links":0,"defined_names":1,"comments":0,"pivot_tables":0},"unopened":[],"bounds":{"document_bytes":16777216,"sheet_cells":100000,"rows_first":2000,"rows_last":500,"rows_between":2000,"halvings":0,"cell_chars":16384,"cell_head_chars":4096},"cells_cut":0,"cells_raw":0,"read":"whole","date_system":"1900"}

{"sheet":"Rentabilité","index":0,"n_rows":49,"n_cols":19,"rows_kept":49,"cut":false,"hidden":false,"merged":[]}
[]
[null,null,"Mise à jour en avril 2023 : ",null,"Modification des Lambda + prix du kWh"]
[null,"Rentabilité de l'isolation d'une conduite parcourue par de l'eau chaude"]
[null,"Ce programme permet de :"]
[null,"- calculer les pertes d'énergie d'une conduite parcourue par de l'eau chaude,"]
[null,"- comparer 2 solutions d'isolations (par exemple, la rentabilité d'une épaisseur d'isolation complémentaire)"]
[null,"- calculer la rentabilité d'une isolation (en partant d'une situation 1 sans isolant)."]
[]
[null,"En pratique, "]
[null,"- encodez les données relatives à votre situation dans les cases bleues."]
[null,"- les résultats sont repris dans les cases jaunes."]
[]
[null,"Conduite"]
[null,"Les pertes d'une conduite enterrée sont inférieure de 10 à 35% aux pertes d'une conduite aérienne. On se rapproche de 10% avec un sol sabloneux\""]
[null,"et une conduite enterrée profondément, On se rapproche de 35% avec une conduite enterrée à faible profondeur dans un sol argileux."]
[null,"En fonction de votre situation, choisissez un pourcentage de réduction des pertes pour conduite enterrée."]
[]
[null,"Pourcentage de réduction des pertes pour conduite enterrée",null,null,null,null,null,{"$f":"IF(Données!B42=1,Données!B43,0)","v":0},"%"]
[]
[null,"Diamètre du tuyau"]
[null,"Longueur du conduit",null,1,"m"]
[null,"T° moyenne de l'eau ",null,60,"°C",null,"(boucle ECS : 60°C; chauffage à T° glissante : 43°C)"]
[null,"T° moyenne de l'ambiance",null,20,"°C"]
[null,"Nbre heures fonct./an",null,8760,"heures",null,"(année : 8760 h; saison chauffe : 5800 h) "]
[null,"Vecteur énergétique"]
[null,"Prix du kWh",null,0.5,{"$f":"IF(Données!B31=1,\"Euro/litre\",IF(Données!B31=2,\"Euro/m³\",\"Euro/kWh\"))","v":"Euro/litre"},null,"(électricité 0,5 Euro/kWh, fuel : 1 Euro/l, gaz :1 Euro/m³ - donnée : février 2023)"]
[]
[]
[null,"Solution 1",null,null,null,null,"Solution 2"]
[]
[null,"Lambda Isolant",null,{"$f":"INDEX(N33:P37,Q33,3)","v":"aucun"},"W/m.K",null,"Lambda Isolant",null,{"$f":"INDEX(N33:P37,Q34,3)","v":3.7999999999999999E-2},"W/m.K"]
[null,"Epaisseur",null,0.01,"m",null,"Epaisseur",null,0.03,"m",null,null,null,"Matériau isolant",null,"Lambda","Cellule cible",null,"Notes"]
[null,"Coût total de l'isolation ",null,5,"Euro/m",null,"Coût total de l'isolation ",null,5,"Euro/m",null,null,null,"aucun isolant",null,"aucun",1]
[null,"Coefficient kL du tuyau",null,{"$f":"IF(D31=\"aucun\",10*3.1416*Données!B23,3.1416/((LN((Données!B23+2*D32)/Données!B23)/(2*D31))+1/(10*(Données!B23+2*D32))))*(1-H18/100)","v":0.84823199999999999},"W/m.K",null,"Coefficient kL du tuyau",null,{"$f":"IF(I31=\"aucun\",10*3.1416*Données!B23,3.1416/((LN((Données!B23+2*I32)/Données!B23)/(2*I31))+1/(10*(Données!B23+2*I32))))*(1-H18/100)","v":0.1898809958076238},"W/m.K",null,null,null,"laine minérale ",null,3.5000000000000003E-2,5,null,"Valeurs courantes"]
[null,"Puissance par mètre",null,{"$f":"+D34*($D$22-$D$23)","v":33.929279999999999},"W/m",null,"Puissance par mètre",null,{"$f":"+I34*($D$22-$D$23)","v":7.5952398323049515},"W/m",null,null,null,"polyuréthane PUR",null,2.1999999999999999E-2,null,null,"(EPBD: 0,019 - 0,037)"]
[null,"Déperdition annuelle",null,{"$f":"+$D$24*D35*$D$21/1000","v":297.22049279999999},"kWh",null,"Déperdition annuelle",null,{"$f":"+$D$24*I35*$D$21/1000","v":66.534300930991378},"kWh",null,null,null,"polystyrène",null,3.2000000000000001E-2,null,null,"Valeurs courantes"]
[null,"Coût annuel des pertes ",null,{"$f":"IF(Données!$B$31=3,+D36*$D$26,+D36*$D$26/10)","v":14.86102464},"Euro",null,"Coût annuel des pertes ",null,{"$f":"IF(Données!$B$31=3,+I36*$D$26,+I36*$D$26/10)","v":3.3267150465495687},"Euro",null,null,null,"polyéthylène",null,3.7999999999999999E-2]
[]
[null,"Pour estimer le gain réalisé grâce à l'isolation d'un tuyau non isolé, comparez une solution 1 sans isolant et une solution 2 avec isolant."]
[null,"Vous pouvez également comparer deux solutions avec des épaisseurs d'isolant différentes et calculer la rentabilité de la surépaisseur."]
[]
[null,null,null,"Economie sol. 2 / sol. 1",null,null,{"$f":"+(D37-I37)*30","v":346.02928780351294},"Euro/30 ans"]
[null,null,null,"Temps de retour ",null,null,{"$f":"IF(G42=0,\"-\",(Données!B36-Données!B35)*D21/(D37-I37))","v":0.43348931806366359},"ans"]
[]
[]
[null,"hypothèse : par simplification, le coefficient d'échange superficiel a été pris à une valeur constante de 10 W/m².K"]
[]
[null,null,"Pour enregistrer vos données dans ",null,null,"Pour imprimer cette feuille sur votre "]
[null,null,"un fichier \"Excel\", cliquez ici :",null,null,"  imprimante par défaut, cliquez ici :"]

{"sheet":"Données","index":1,"n_rows":52,"n_cols":15,"rows_kept":52,"cut":false,"hidden":false,"merged":[]}
[]
["Type de tuyau"]
[null,null,null,"mm","m","reg allemande"]
["DN10 - 3/8\" - diam = 17 mm",null,null,17,{"$f":"D4/1000","v":1.7000000000000001E-2},20,null,null,10,25,30,null,10,25,40]
["DN15 - 1/2\" - diam = 21 mm",null,null,21,{"$f":"D5/1000","v":2.1000000000000001E-2},20,null,null,15,25,30,null,15,25,40]
["DN20 - 3/4\" - diam = 27 mm",null,null,27,2.7E-2,20,null,null,20,25,40,null,20,30,40]
["DN25 - 1\" - diam = 34 mm",null,null,34,3.4000000000000002E-2,30,null,null,25,25,40,null,25,30,50]
["DN32 - 1 1/4\" - diam = 42 mm",null,null,42,4.2000000000000003E-2,30,null,null,32,30,40,null,32,40,50]
["DN40 - 1 1/2\" - diam = 48 mm",null,null,48,4.8000000000000001E-2,48,null,null,40,30,50,null,40,40,50]
["DN50 - 2\" - diam = 60 mm",null,null,60,0.06,60,null,null,50,30,50,null,50,40,50]
["DN65 - 2 1/2\" - diam = 76 mm",null,null,76,7.5999999999999998E-2,76,null,null,65,40,50,null,65,40,60]
["DN80 - 3\" - diam = 89 mm",null,null,89,8.8999999999999996E-2,89,null,null,80,40,60,null,80,50,60]
["DN100 - 4\" - diam = 114 mm",null,null,114,0.114,100,null,null,100,40,60,null,100,50,80]
["DN125 - 5\" - diam = 140 mm",null,null,140,0.14000000000000001,100,null,null,125,50,60,null,125,60,80]
["DN150 - 6\" - diam = 165 mm",null,null,165,0.16500000000000001,100,null,null,150,50,80,null,150,60,80]
["DN200 - diam = 219 mm",null,null,219,0.219,100,null,null,200,50,80,null,200,60,80]
["DN250 - diam = 273 mm",null,null,272,0.27200000000000002,100,null,null,250,60,80,null,250,60,80]
["DN300 - diam = 324 mm",null,null,325,0.32500000000000001,100,null,null,300,60,80,null,300,80,100]
["DN350 - diam = 378 mm",null,null,378,0.378,100,null,null,350,60,80,null,350,80,100]
["DN400 - diam = 432 mm",null,null,432,0.432,100,null,null,400,60,80,null,400,80,100]
[null,null,null,null,null,"mm"]
["Cellule",3]
["Diamètre",{"$f":"INDEX(E4:E20,B22,1)","v":2.7E-2},"m"]
[]
[]
["Combustible"]
["Fuel"]
["Gaz"]
["Electricité"]
[]
["Cellule",1]
[]
[]
["Prix de l'isolant"]
["Solution 1",{"$f":"IF(Rentabilité!D31=\"aucun\",0,Rentabilité!D33)","v":0},"euro/m"]
["Solution 2",{"$f":"IF(Rentabilité!I31=\"aucun\",0,Rentabilité!I33)","v":5},"euro/m"]
[]
["Conduite"]
["Enterrée"]
["Aérienne"]
[]
["Cellule",2]
["%réduction",35]
[]
[]
["épaisseur réglementation allemande"]
[]
["dn tuyaux","mm"]
["DN20",20]
["DN32",30]
["DN100"]
["DN100",100]